[Event "Titled Tuesday Blitz August 22 Early 2023"]
[White "Orozbaev, Eldiar"]
[Black "Zakhartsov, Vladimir"]
[WhiteFideId "13802240"]
[BlackFideId "4145097"]
[WhiteElo "2770"]
[BlackElo "2914"]
[Result "1/2-1/2"]
[Round "6"]
[TimeControl "180+1"]
[Date "2023.08.22"]
[WhiteClock "0:00:07"]
[BlackClock "0:00:05"]
[Board "22"]

1. e4 {[%clk 0:02:56]}  c5 {[%clk 0:02:58]} 2. c3 {[%clk 0:02:56]}  e5 {[%clk 0:02:50]} 3. Nf3 {[%clk 0:02:56]}  Nc6 {[%clk 0:02:49]} 4. d4 {[%clk 0:02:56]}  cxd4 {[%clk 0:02:46]} 5. cxd4 {[%clk 0:02:57]}  exd4 {[%clk 0:02:47]} 6. Nxd4 {[%clk 0:02:58]}  Nf6 {[%clk 0:02:46]} 7. Nc3 {[%clk 0:02:58]}  Bb4 {[%clk 0:02:42]} 8. Nxc6 {[%clk 0:02:56]}  bxc6 {[%clk 0:02:42]} 9. Bd3 {[%clk 0:02:57]}  O-O {[%clk 0:02:40]} 10. O-O {[%clk 0:02:56]}  d5 {[%clk 0:02:40]} 11. exd5 {[%clk 0:02:56]}  Nxd5 {[%clk 0:02:40]} 12. Nxd5 {[%clk 0:02:53]}  cxd5 {[%clk 0:02:41]} 13. Be3 {[%clk 0:02:41]}  Be6 {[%clk 0:02:35]} 14. Bd4 {[%clk 0:02:38]}  Be7 {[%clk 0:02:32]} 15. Qf3 {[%clk 0:02:36]}  a5 {[%clk 0:02:27]} 16. Rad1 {[%clk 0:02:35]}  Bf6 {[%clk 0:02:26]} 17. Bxf6 {[%clk 0:02:34]}  Qxf6 {[%clk 0:02:27]} 18. Qxf6 {[%clk 0:02:35]}  gxf6 {[%clk 0:02:28]} 19. Bb5 {[%clk 0:02:27]}  a4 {[%clk 0:02:26]} 20. Bc6 {[%clk 0:02:21]}  Ra5 {[%clk 0:02:25]} 21. Rd4 {[%clk 0:02:17]}  Rb8 {[%clk 0:02:25]} 22. Bxa4 {[%clk 0:02:09]}  Rxb2 {[%clk 0:02:23]} 23. Bb3 {[%clk 0:02:10]}  f5 {[%clk 0:02:20]} 24. h4 {[%clk 0:02:04]}  Kg7 {[%clk 0:02:20]} 25. Rfd1 {[%clk 0:02:01]}  Kf6 {[%clk 0:02:18]} 26. h5 {[%clk 0:01:58]}  Ke5 {[%clk 0:02:15]} 27. h6 {[%clk 0:01:45]}  Re2 {[%clk 0:02:09]} 28. R4d3 {[%clk 0:01:34]}  Re4 {[%clk 0:02:04]} 29. g3 {[%clk 0:01:25]}  f4 {[%clk 0:01:51]} 30. gxf4+ {[%clk 0:01:19]}  Rxf4 {[%clk 0:01:51]} 31. Rg3 {[%clk 0:01:17]}  Rh4 {[%clk 0:01:49]} 32. Re1+ {[%clk 0:01:05]}  Kd6 {[%clk 0:01:47]} 33. Rg8 {[%clk 0:00:55]}  Rxh6 {[%clk 0:01:44]} 34. Rd8+ {[%clk 0:00:56]}  Kc7 {[%clk 0:01:40]} 35. Rg8 {[%clk 0:00:53]}  Rg6+ {[%clk 0:01:34]} 36. Rxg6 {[%clk 0:00:53]}  hxg6 {[%clk 0:01:35]} 37. Kg2 {[%clk 0:00:52]}  Kd6 {[%clk 0:01:34]} 38. Kf3 {[%clk 0:00:52]}  d4 {[%clk 0:01:31]} 39. Rb1 {[%clk 0:00:32]}  Ke5 {[%clk 0:01:19]} 40. Ke2 {[%clk 0:00:28]}  Bf5 {[%clk 0:01:12]} 41. Re1 {[%clk 0:00:25]}  Kf6 {[%clk 0:00:54]} 42. Kd2 {[%clk 0:00:21]}  g5 {[%clk 0:00:52]} 43. Re8 {[%clk 0:00:19]}  Bg6 {[%clk 0:00:51]} 44. Rd8 {[%clk 0:00:19]}  Ke5 {[%clk 0:00:51]} 45. Rd7 {[%clk 0:00:15]}  f6 {[%clk 0:00:48]} 46. Re7+ {[%clk 0:00:14]}  Kf4 {[%clk 0:00:46]} 47. Re6 {[%clk 0:00:14]}  Kf5 {[%clk 0:00:45]} 48. Rd6 {[%clk 0:00:13]}  Ke5 {[%clk 0:00:38]} 49. Re6+ {[%clk 0:00:13]}  Kf5 {[%clk 0:00:38]} 50. Rd6 {[%clk 0:00:14]}  Be8 {[%clk 0:00:30]} 51. Rxd4 {[%clk 0:00:13]}  Bc6 {[%clk 0:00:30]} 52. Rd6 {[%clk 0:00:11]}  Be4 {[%clk 0:00:30]} 53. Ke3 {[%clk 0:00:10]}  Bb7 {[%clk 0:00:20]} 54. Rd7 {[%clk 0:00:09]}  Re5+ {[%clk 0:00:18]} 55. Kd4 {[%clk 0:00:08]}  Bc6 {[%clk 0:00:18]} 56. Rd6 {[%clk 0:00:08]}  Bf3 {[%clk 0:00:18]} 57. Bc2+ {[%clk 0:00:08]}  Kg4 {[%clk 0:00:17]} 58. Rxf6 {[%clk 0:00:07]}  Ra5 {[%clk 0:00:17]} 59. Bb3 {[%clk 0:00:07]}  Be2 {[%clk 0:00:15]} 60. Ke3 {[%clk 0:00:07]}  Re5+ {[%clk 0:00:14]} 61. Kd2 {[%clk 0:00:07]}  Bf1 {[%clk 0:00:13]} 62. Be6+ {[%clk 0:00:08]}  Kh5 {[%clk 0:00:12]} 63. f3 {[%clk 0:00:08]}  Re2+ {[%clk 0:00:11]} 64. Kc3 {[%clk 0:00:06]}  Kh4 {[%clk 0:00:11]} 65. Bg4 {[%clk 0:00:06]}  Rxa2 {[%clk 0:00:10]} 66. Kd4 {[%clk 0:00:04]}  Re2 {[%clk 0:00:08]} 67. Rc6 {[%clk 0:00:03]}  Kg3 {[%clk 0:00:07]} 68. Rc5 {[%clk 0:00:04]}  Kh4 {[%clk 0:00:06]} 69. Rc8 {[%clk 0:00:04]}  Bg2 {[%clk 0:00:06]} 70. Kd3 {[%clk 0:00:04]}  Re5 {[%clk 0:00:06]} 71. Kd4 {[%clk 0:00:03]}  Ra5 {[%clk 0:00:06]} 72. Rc5 {[%clk 0:00:03]}  Rxc5 {[%clk 0:00:05]} 73. Kxc5 {[%clk 0:00:04]}  Kg3 {[%clk 0:00:06]} 74. Kd4 {[%clk 0:00:04]}  Bxf3 {[%clk 0:00:06]} 75. Bd7 {[%clk 0:00:05]}  Kf4 {[%clk 0:00:06]} 76. Kd3 {[%clk 0:00:05]}  Be4+ {[%clk 0:00:01]} 77. Ke2 {[%clk 0:00:05]}  Kg3 {[%clk 0:00:02]} 78. Kf1 {[%clk 0:00:05]}  Bg2+ {[%clk 0:00:02]} 79. Kg1 {[%clk 0:00:05]}  Bf3 {[%clk 0:00:03]} 80. Bc8 {[%clk 0:00:06]}  Bg2 {[%clk 0:00:03]} 81. Bd7 {[%clk 0:00:06]}  Bh3 {[%clk 0:00:03]} 82. Bc6 {[%clk 0:00:05]}  Bf5 {[%clk 0:00:04]} 83. Be8 {[%clk 0:00:05]}  Bd3 {[%clk 0:00:04]} 84. Bh5 {[%clk 0:00:05]}  Be4 {[%clk 0:00:03]} 85. Be8 {[%clk 0:00:06]}  Bf3 {[%clk 0:00:04]} 86. Bd7 {[%clk 0:00:06]}  Bg4 {[%clk 0:00:04]} 87. Be8 {[%clk 0:00:06]}  Bh3 {[%clk 0:00:04]} 88. Ba4 {[%clk 0:00:06]}  Bf5 {[%clk 0:00:04]} 89. Bd1 {[%clk 0:00:06]}  Be4 {[%clk 0:00:04]} 90. Be2 {[%clk 0:00:07]}  Kf4 {[%clk 0:00:05]} 91. Bd1 {[%clk 0:00:07]}  Bf3 {[%clk 0:00:05]} 92. Ba4 {[%clk 0:00:07]}  g4 {[%clk 0:00:05]} 93. Bd7 {[%clk 0:00:07]}  g3 {[%clk 0:00:05]} 94. Bh3 {[%clk 0:00:07]}  g2 {[%clk 0:00:05]} 95. Bxg2 {[%clk 0:00:07]} 1/2-1/2


[Site "https://www.chess.com"]

[Event "Titled Tuesday Blitz August 22 Early 2023"]
[White "Kosteniuk, Alexandra"]
[Black "Kovalev, Vladislav"]
[WhiteFideId "4128125"]
[BlackFideId "13504398"]
[WhiteElo "2760"]
[BlackElo "2905"]
[Result "0-1"]
[Round "6"]
[TimeControl "180+1"]
[Date "2023.08.22"]
[WhiteClock "0:00:01"]
[BlackClock "0:00:08"]
[Board "23"]

1. e4 {[%clk 0:02:56]}  e5 {[%clk 0:03:00]} 2. Nf3 {[%clk 0:02:56]}  Nc6 {[%clk 0:03:00]} 3. Bc4 {[%clk 0:02:56]}  Nf6 {[%clk 0:03:00]} 4. d3 {[%clk 0:02:57]}  Bc5 {[%clk 0:03:00]} 5. a4 {[%clk 0:02:55]}  d6 {[%clk 0:03:00]} 6. a5 {[%clk 0:02:54]}  a6 {[%clk 0:03:00]} 7. c3 {[%clk 0:02:54]}  h6 {[%clk 0:02:59]} 8. O-O {[%clk 0:02:53]}  Ba7 {[%clk 0:02:55]} 9. Re1 {[%clk 0:02:52]}  O-O {[%clk 0:02:53]} 10. Nbd2 {[%clk 0:02:36]}  Ne7 {[%clk 0:02:51]} 11. Nf1 {[%clk 0:02:31]}  Ng6 {[%clk 0:02:52]} 12. Ng3 {[%clk 0:02:26]}  c6 {[%clk 0:02:52]} 13. Be3 {[%clk 0:02:18]}  Bxe3 {[%clk 0:02:48]} 14. Rxe3 {[%clk 0:02:10]}  Re8 {[%clk 0:02:48]} 15. d4 {[%clk 0:01:59]}  exd4 {[%clk 0:02:41]} 16. Qxd4 {[%clk 0:01:53]}  Ne5 {[%clk 0:02:20]} 17. Bb3 {[%clk 0:01:41]}  Nfg4 {[%clk 0:02:06]} 18. Re2 {[%clk 0:01:34]}  Nxf3+ {[%clk 0:02:03]} 19. gxf3 {[%clk 0:01:33]}  Ne5 {[%clk 0:02:02]} 20. Re3 {[%clk 0:01:16]}  Qf6 {[%clk 0:01:57]} 21. Bd1 {[%clk 0:01:09]}  Bh3 {[%clk 0:01:44]} 22. f4 {[%clk 0:00:46]}  Qxf4 {[%clk 0:01:24]} 23. Nh5 {[%clk 0:00:46]}  Qh4 {[%clk 0:01:05]} 24. Rg3 {[%clk 0:00:47]}  g6 {[%clk 0:00:42]} 25. Qxd6 {[%clk 0:00:46]}  Re6 {[%clk 0:00:25]} 26. Qd2 {[%clk 0:00:45]}  Bg4 {[%clk 0:00:11]} 27. Qf4 {[%clk 0:00:09]}  gxh5 {[%clk 0:00:09]} 28. h3 {[%clk 0:00:04]}  Qg5 {[%clk 0:00:06]} 29. Qxg5+ {[%clk 0:00:03]}  hxg5 {[%clk 0:00:07]} 30. hxg4 {[%clk 0:00:02]}  h4 {[%clk 0:00:08]} 31. Re3 {[%clk 0:00:02]}  Rd8 {[%clk 0:00:08]} 32. Be2 {[%clk 0:00:02]}  Red6 {[%clk 0:00:09]} 33. b4 {[%clk 0:00:01]}  Rd2 {[%clk 0:00:09]} 34. Rc1 {[%clk 0:00:01]}  Ng6 {[%clk 0:00:09]} 35. Bf1 {[%clk 0:00:01]}  Nf4 {[%clk 0:00:09]} 36. e5 {[%clk 0:00:02]}  Rd1 {[%clk 0:00:08]} 37. Re1 {[%clk 0:00:01]}  Rxc1 {[%clk 0:00:08]} 38. Rxc1 {[%clk 0:00:02]}  Rd2 {[%clk 0:00:08]} 39. c4 {[%clk 0:00:02]}  Kf8 {[%clk 0:00:08]} 40. b5 {[%clk 0:00:03]}  c5 {[%clk 0:00:08]} 41. bxa6 {[%clk 0:00:03]}  bxa6 {[%clk 0:00:09]} 42. Rb1 {[%clk 0:00:04]}  Ra2 {[%clk 0:00:09]} 43. Rb8+ {[%clk 0:00:04]}  Kg7 {[%clk 0:00:09]} 44. Rc8 {[%clk 0:00:03]}  Rxa5 {[%clk 0:00:09]} 45. f3 {[%clk 0:00:03]}  Ra1 {[%clk 0:00:06]} 46. Kf2 {[%clk 0:00:03]}  Ra2+ {[%clk 0:00:05]} 47. Kg1 {[%clk 0:00:02]}  h3 {[%clk 0:00:06]} 48. Bxh3 {[%clk 0:00:01]}  Nxh3+ {[%clk 0:00:07]} 49. Kf1 {[%clk 0:00:02]}  Rf2+ {[%clk 0:00:06]} 50. Ke1 {[%clk 0:00:02]}  Rxf3 {[%clk 0:00:07]} 51. Rxc5 {[%clk 0:00:02]}  Nf4 {[%clk 0:00:07]} 52. Rc6 {[%clk 0:00:02]}  Rc3 {[%clk 0:00:07]} 53. Rxa6 {[%clk 0:00:02]}  Rxc4 {[%clk 0:00:07]} 54. Kf2 {[%clk 0:00:02]}  Ne6 {[%clk 0:00:08]} 55. Ra7 {[%clk 0:00:01]}  Rxg4 {[%clk 0:00:08]} 0-1


[Site "https://www.chess.com"]

[Event "Titled Tuesday Blitz August 22 Early 2023"]
[White "Hulka, Valentyn"]
[Black "Rasulov, Vugar"]
[WhiteFideId "34107061"]
[BlackFideId "13402390"]
[WhiteElo "2734"]
[BlackElo "2889"]
[Result "0-1"]
[Round "6"]
[TimeControl "180+1"]
[Date "2023.08.22"]
[WhiteClock "0:00:32"]
[BlackClock "0:00:33"]
[Board "24"]

1. e4 {[%clk 0:02:59]}  c5 {[%clk 0:02:59]} 2. Nf3 {[%clk 0:03:00]}  d6 {[%clk 0:03:00]} 3. Bb5+ {[%clk 0:03:00]}  Nd7 {[%clk 0:03:00]} 4. a4 {[%clk 0:03:00]}  Nf6 {[%clk 0:02:59]} 5. Nc3 {[%clk 0:03:00]}  a6 {[%clk 0:02:56]} 6. Be2 {[%clk 0:03:01]}  b6 {[%clk 0:02:57]} 7. d4 {[%clk 0:03:00]}  cxd4 {[%clk 0:02:56]} 8. Qxd4 {[%clk 0:03:01]}  Bb7 {[%clk 0:02:53]} 9. O-O {[%clk 0:03:01]}  e5 {[%clk 0:02:52]} 10. Qe3 {[%clk 0:03:01]}  Be7 {[%clk 0:02:52]} 11. Rd1 {[%clk 0:02:57]}  O-O {[%clk 0:02:52]} 12. Nd2 {[%clk 0:02:57]}  Nc5 {[%clk 0:02:49]} 13. Nc4 {[%clk 0:02:55]}  Nfxe4 {[%clk 0:02:40]} 14. Nxe4 {[%clk 0:02:48]}  Bxe4 {[%clk 0:02:41]} 15. b4 {[%clk 0:02:47]}  Bxc2 {[%clk 0:02:39]} 16. bxc5 {[%clk 0:02:47]}  Bxd1 {[%clk 0:02:39]} 17. Bxd1 {[%clk 0:02:47]}  bxc5 {[%clk 0:02:37]} 18. a5 {[%clk 0:02:47]}  Rb8 {[%clk 0:02:14]} 19. Bf3 {[%clk 0:02:35]}  h6 {[%clk 0:02:05]} 20. Nb6 {[%clk 0:02:33]}  Bg5 {[%clk 0:02:02]} 21. Qd3 {[%clk 0:02:31]}  Bxc1 {[%clk 0:02:03]} 22. Rxc1 {[%clk 0:02:31]}  Rxb6 {[%clk 0:01:49]} 23. axb6 {[%clk 0:02:28]}  Qxb6 {[%clk 0:01:49]} 24. Bd5 {[%clk 0:02:23]}  Qb2 {[%clk 0:01:45]} 25. Rb1 {[%clk 0:02:03]}  Qd4 {[%clk 0:01:45]} 26. Qxd4 {[%clk 0:02:03]}  cxd4 {[%clk 0:01:40]} 27. g3 {[%clk 0:01:52]}  Kh7 {[%clk 0:01:30]} 28. Rb6 {[%clk 0:01:47]}  f5 {[%clk 0:01:30]} 29. Rxa6 {[%clk 0:01:43]}  Rf6 {[%clk 0:01:16]} 30. Kf1 {[%clk 0:01:40]}  e4 {[%clk 0:01:15]} 31. Ke2 {[%clk 0:01:37]}  Kg6 {[%clk 0:01:15]} 32. Ra4 {[%clk 0:01:35]}  d3+ {[%clk 0:01:14]} 33. Ke3 {[%clk 0:01:35]}  Rf8 {[%clk 0:01:00]} 34. Ra6 {[%clk 0:01:30]}  Kf6 {[%clk 0:00:44]} 35. f4 {[%clk 0:01:11]}  Rb8 {[%clk 0:00:41]} 36. Rxd6+ {[%clk 0:01:09]}  Ke7 {[%clk 0:00:41]} 37. Re6+ {[%clk 0:00:48]}  Kd7 {[%clk 0:00:42]} 38. Re5 {[%clk 0:00:42]}  Rb2 {[%clk 0:00:41]} 39. Be6+ {[%clk 0:00:39]}  Kd6 {[%clk 0:00:38]} 40. Bxf5 {[%clk 0:00:38]}  Re2+ {[%clk 0:00:38]} 41. Kd4 {[%clk 0:00:39]}  d2 {[%clk 0:00:34]} 42. Kc3 {[%clk 0:00:32]}  d1=Q {[%clk 0:00:33]} 0-1


[Site "https://www.chess.com"]

[Event "Titled Tuesday Blitz August 22 Early 2023"]
[White "carokannlover213"]
[Black "Harsh Suresh"]
[BlackFideId "45018464"]
[WhiteElo "2723"]
[BlackElo "2881"]
[Result "0-1"]
[Round "6"]
[TimeControl "180+1"]
[Date "2023.08.22"]
[WhiteClock "0:00:06"]
[BlackClock "0:00:12"]
[Board "25"]

1. e4 {[%clk 0:03:00]}  g6 {[%clk 0:02:55]} 2. d4 {[%clk 0:03:00]}  Nf6 {[%clk 0:02:56]} 3. e5 {[%clk 0:03:00]}  Nh5 {[%clk 0:02:56]} 4. Nf3 {[%clk 0:02:56]}  d6 {[%clk 0:02:56]} 5. exd6 {[%clk 0:02:47]}  cxd6 {[%clk 0:02:55]} 6. Bb5+ {[%clk 0:02:42]}  Bd7 {[%clk 0:02:54]} 7. Bxd7+ {[%clk 0:02:40]}  Nxd7 {[%clk 0:02:55]} 8. O-O {[%clk 0:02:40]}  Bg7 {[%clk 0:02:55]} 9. c4 {[%clk 0:02:40]}  O-O {[%clk 0:02:54]} 10. Be3 {[%clk 0:02:32]}  Nhf6 {[%clk 0:02:54]} 11. h3 {[%clk 0:02:30]}  Qc7 {[%clk 0:02:53]} 12. Qe2 {[%clk 0:02:28]}  Rfc8 {[%clk 0:02:52]} 13. b3 {[%clk 0:02:27]}  d5 {[%clk 0:02:48]} 14. c5 {[%clk 0:02:11]}  b6 {[%clk 0:02:48]} 15. cxb6 {[%clk 0:01:53]}  Qxb6 {[%clk 0:02:44]} 16. Nbd2 {[%clk 0:01:51]}  a5 {[%clk 0:02:43]} 17. Rfc1 {[%clk 0:01:49]}  e6 {[%clk 0:02:42]} 18. a4 {[%clk 0:01:46]}  Bf8 {[%clk 0:02:36]} 19. Qd3 {[%clk 0:01:36]}  Ne8 {[%clk 0:02:26]} 20. Ne5 {[%clk 0:01:33]}  Ndf6 {[%clk 0:02:14]} 21. Bg5 {[%clk 0:01:27]}  Qb7 {[%clk 0:02:10]} 22. Rxc8 {[%clk 0:00:58]}  Rxc8 {[%clk 0:02:10]} 23. Qb5 {[%clk 0:00:58]}  Qc7 {[%clk 0:01:40]} 24. Ndf3 {[%clk 0:00:42]}  Ne4 {[%clk 0:01:30]} 25. Rc1 {[%clk 0:00:32]}  Qb8 {[%clk 0:00:56]} 26. Qxb8 {[%clk 0:00:14]}  Rxb8 {[%clk 0:00:55]} 27. Nc6 {[%clk 0:00:15]}  Rxb3 {[%clk 0:00:51]} 28. Nxa5 {[%clk 0:00:12]}  Ra3 {[%clk 0:00:38]} 29. Rc8 {[%clk 0:00:06]}  N8d6 {[%clk 0:00:37]} 30. Rb8 {[%clk 0:00:03]}  Rxa4 {[%clk 0:00:31]} 31. Nc6 {[%clk 0:00:03]}  Nf5 {[%clk 0:00:30]} 32. Ne7+ {[%clk 0:00:01]}  Kg7 {[%clk 0:00:26]} 33. Nxf5+ {[%clk 0:00:02]}  gxf5 {[%clk 0:00:26]} 34. Bf4 {[%clk 0:00:02]}  Bd6 {[%clk 0:00:15]} 35. Bxd6 {[%clk 0:00:02]}  Nxd6 {[%clk 0:00:16]} 36. Rb1 {[%clk 0:00:02]}  Ne4 {[%clk 0:00:13]} 37. Rb2 {[%clk 0:00:02]}  Nc3 {[%clk 0:00:13]} 38. g3 {[%clk 0:00:02]}  Rc4 {[%clk 0:00:11]} 39. Kg2 {[%clk 0:00:02]}  Ne4 {[%clk 0:00:11]} 40. Rb1 {[%clk 0:00:02]}  h6 {[%clk 0:00:09]} 41. Rb2 {[%clk 0:00:02]}  Ng5 {[%clk 0:00:09]} 42. Re2 {[%clk 0:00:02]}  Nxf3 {[%clk 0:00:09]} 43. Kxf3 {[%clk 0:00:03]}  Rxd4 {[%clk 0:00:09]} 44. Ra2 {[%clk 0:00:04]}  Kg6 {[%clk 0:00:09]} 45. Ra7 {[%clk 0:00:04]}  Rc4 {[%clk 0:00:09]} 46. Ra8 {[%clk 0:00:05]}  Re4 {[%clk 0:00:09]} 47. Rg8+ {[%clk 0:00:06]}  Kh7 {[%clk 0:00:09]} 48. Rd8 {[%clk 0:00:06]}  Kg7 {[%clk 0:00:10]} 49. Rd7 {[%clk 0:00:06]}  Rc4 {[%clk 0:00:10]} 50. Rd8 {[%clk 0:00:07]}  Rc7 {[%clk 0:00:10]} 51. Kf4 {[%clk 0:00:07]}  Rc4+ {[%clk 0:00:09]} 52. Kf3 {[%clk 0:00:05]}  h5 {[%clk 0:00:10]} 53. h4 {[%clk 0:00:05]}  Rd4 {[%clk 0:00:09]} 54. Ke3 {[%clk 0:00:04]}  Rg4 {[%clk 0:00:09]} 55. Kf3 {[%clk 0:00:05]}  f4 {[%clk 0:00:09]} 56. gxf4 {[%clk 0:00:04]}  Kf6 {[%clk 0:00:09]} 57. Rh8 {[%clk 0:00:02]}  Rxh4 {[%clk 0:00:09]} 58. Rh7 {[%clk 0:00:02]}  Kg6 {[%clk 0:00:09]} 59. Rh8 {[%clk 0:00:02]}  Kf5 {[%clk 0:00:09]} 60. Kg3 {[%clk 0:00:02]}  Rg4+ {[%clk 0:00:10]} 61. Kh3 {[%clk 0:00:02]}  Rxf4 {[%clk 0:00:10]} 62. Rxh5+ {[%clk 0:00:03]}  Ke4 {[%clk 0:00:10]} 63. Kg3 {[%clk 0:00:03]}  Rf5 {[%clk 0:00:10]} 64. Rh4+ {[%clk 0:00:03]}  Kd3 {[%clk 0:00:10]} 65. Ra4 {[%clk 0:00:03]}  d4 {[%clk 0:00:10]} 66. f4 {[%clk 0:00:04]}  Ke3 {[%clk 0:00:10]} 67. Ra3+ {[%clk 0:00:03]}  d3 {[%clk 0:00:11]} 68. Ra1 {[%clk 0:00:02]}  d2 {[%clk 0:00:11]} 69. Kg2 {[%clk 0:00:01]}  Ke2 {[%clk 0:00:11]} 70. Ra2 {[%clk 0:00:02]}  Ke1 {[%clk 0:00:10]} 71. Kf3 {[%clk 0:00:02]}  d1=Q+ {[%clk 0:00:11]} 72. Ke3 {[%clk 0:00:03]}  Qc1+ {[%clk 0:00:11]} 73. Ke4 {[%clk 0:00:04]}  Qxf4+ {[%clk 0:00:11]} 74. Kd3 {[%clk 0:00:04]}  Rd5+ {[%clk 0:00:11]} 75. Kc3 {[%clk 0:00:05]}  Qd4+ {[%clk 0:00:11]} 76. Kb3 {[%clk 0:00:06]}  Rb5+ {[%clk 0:00:12]} 77. Kc2 {[%clk 0:00:06]}  Qd2# {[%clk 0:00:12]} 0-1


[Site "https://www.chess.com"]

[Event "Titled Tuesday Blitz August 22 Early 2023"]
[White "Jones, Gawain C B"]
[Black "Karthik Rajaa"]
[WhiteFideId "409561"]
[BlackFideId "25035215"]
[WhiteElo "2872"]
[BlackElo "2713"]
[Result "1-0"]
[Round "6"]
[TimeControl "180+1"]
[Date "2023.08.22"]
[WhiteClock "0:00:11"]
[BlackClock "0:00:06"]
[Board "27"]

1. Nf3 {[%clk 0:03:00]}  Nf6 {[%clk 0:02:59]} 2. g3 {[%clk 0:02:59]}  g6 {[%clk 0:03:00]} 3. b3 {[%clk 0:02:59]}  b5 {[%clk 0:02:59]} 4. Na3 {[%clk 0:02:57]}  a6 {[%clk 0:02:51]} 5. c4 {[%clk 0:02:58]}  bxc4 {[%clk 0:02:40]} 6. Nxc4 {[%clk 0:02:58]}  a5 {[%clk 0:02:40]} 7. Bb2 {[%clk 0:02:56]}  Bg7 {[%clk 0:02:40]} 8. Bg2 {[%clk 0:02:57]}  Bb7 {[%clk 0:02:40]} 9. O-O {[%clk 0:02:56]}  O-O {[%clk 0:02:40]} 10. d3 {[%clk 0:02:53]}  d6 {[%clk 0:02:38]} 11. e4 {[%clk 0:02:41]}  e5 {[%clk 0:02:28]} 12. Re1 {[%clk 0:02:37]}  Nbd7 {[%clk 0:02:25]} 13. d4 {[%clk 0:02:32]}  Nxe4 {[%clk 0:02:16]} 14. dxe5 {[%clk 0:02:29]}  d5 {[%clk 0:02:15]} 15. Ne3 {[%clk 0:02:04]}  c6 {[%clk 0:02:06]} 16. Nd2 {[%clk 0:01:52]}  Nxd2 {[%clk 0:01:37]} 17. Qxd2 {[%clk 0:01:52]}  Qb6 {[%clk 0:01:37]} 18. Ng4 {[%clk 0:01:46]}  Rfe8 {[%clk 0:01:30]} 19. Nh6+ {[%clk 0:01:16]}  Bxh6 {[%clk 0:01:29]} 20. Qxh6 {[%clk 0:01:16]}  d4 {[%clk 0:01:30]} 21. e6 {[%clk 0:00:44]}  Rxe6 {[%clk 0:01:21]} 22. Rxe6 {[%clk 0:00:38]}  fxe6 {[%clk 0:01:22]} 23. Re1 {[%clk 0:00:34]}  Nf8 {[%clk 0:01:21]} 24. Ba3 {[%clk 0:00:21]}  Re8 {[%clk 0:00:34]} 25. Bxf8 {[%clk 0:00:14]}  Rxf8 {[%clk 0:00:35]} 26. Rxe6 {[%clk 0:00:14]}  Qc7 {[%clk 0:00:27]} 27. Qd2 {[%clk 0:00:04]}  c5 {[%clk 0:00:19]} 28. Bxb7 {[%clk 0:00:03]}  Qxb7 {[%clk 0:00:20]} 29. Qe2 {[%clk 0:00:04]}  Qf7 {[%clk 0:00:18]} 30. Re7 {[%clk 0:00:04]}  Qd5 {[%clk 0:00:16]} 31. h4 {[%clk 0:00:01]}  d3 {[%clk 0:00:15]} 32. Qd2 {[%clk 0:00:02]}  Qd4 {[%clk 0:00:15]} 33. Re3 {[%clk 0:00:02]}  Rd8 {[%clk 0:00:15]} 34. Kf1 {[%clk 0:00:02]}  a4 {[%clk 0:00:13]} 35. Kg2 {[%clk 0:00:02]}  axb3 {[%clk 0:00:12]} 36. axb3 {[%clk 0:00:02]}  Qd5+ {[%clk 0:00:13]} 37. Kh2 {[%clk 0:00:03]}  Qxb3 {[%clk 0:00:13]} 38. Re7 {[%clk 0:00:03]}  Qd5 {[%clk 0:00:10]} 39. Qh6 {[%clk 0:00:02]}  Qf7 {[%clk 0:00:07]} 40. Rxf7 {[%clk 0:00:02]}  Kxf7 {[%clk 0:00:07]} 41. Qf4+ {[%clk 0:00:02]}  Ke7 {[%clk 0:00:07]} 42. Qe5+ {[%clk 0:00:02]}  Kf7 {[%clk 0:00:06]} 43. Qf4+ {[%clk 0:00:02]}  Ke7 {[%clk 0:00:07]} 44. Qg5+ {[%clk 0:00:03]}  Ke8 {[%clk 0:00:07]} 45. Qxc5 {[%clk 0:00:01]}  d2 {[%clk 0:00:06]} 46. Qe3+ {[%clk 0:00:01]}  Kf7 {[%clk 0:00:07]} 47. Qf3+ {[%clk 0:00:02]}  Ke7 {[%clk 0:00:07]} 48. Qd1 {[%clk 0:00:03]}  Ke6 {[%clk 0:00:08]} 49. Kg2 {[%clk 0:00:04]}  Ke5 {[%clk 0:00:08]} 50. Kf3 {[%clk 0:00:04]}  Rd7 {[%clk 0:00:08]} 51. Ke2 {[%clk 0:00:05]}  Kf6 {[%clk 0:00:04]} 52. Qa1+ {[%clk 0:00:05]}  Kf5 {[%clk 0:00:04]} 53. Kd1 {[%clk 0:00:05]}  Kg4 {[%clk 0:00:05]} 54. Qc3 {[%clk 0:00:06]}  Kh3 {[%clk 0:00:04]} 55. Qf3 {[%clk 0:00:06]}  Kh2 {[%clk 0:00:04]} 56. g4 {[%clk 0:00:06]}  Rd4 {[%clk 0:00:03]} 57. Qg3+ {[%clk 0:00:06]}  Kh1 {[%clk 0:00:03]} 58. f4 {[%clk 0:00:06]}  Rd6 {[%clk 0:00:03]} 59. f5 {[%clk 0:00:06]}  gxf5 {[%clk 0:00:03]} 60. Qxd6 {[%clk 0:00:06]}  fxg4 {[%clk 0:00:04]} 61. Qg3 {[%clk 0:00:06]}  h5 {[%clk 0:00:04]} 62. Qe3 {[%clk 0:00:05]}  Kh2 {[%clk 0:00:04]} 63. Kxd2 {[%clk 0:00:05]}  g3 {[%clk 0:00:05]} 64. Ke2 {[%clk 0:00:06]}  g2 {[%clk 0:00:06]} 65. Qf2 {[%clk 0:00:06]}  Kh1 {[%clk 0:00:06]} 66. Qf3 {[%clk 0:00:06]}  Kh2 {[%clk 0:00:07]} 67. Qf4+ {[%clk 0:00:06]}  Kh1 {[%clk 0:00:06]} 68. Qe4 {[%clk 0:00:07]}  Kh2 {[%clk 0:00:07]} 69. Qe5+ {[%clk 0:00:07]}  Kh1 {[%clk 0:00:06]} 70. Qd5 {[%clk 0:00:07]}  Kh2 {[%clk 0:00:07]} 71. Qd6+ {[%clk 0:00:07]}  Kh1 {[%clk 0:00:07]} 72. Qc6 {[%clk 0:00:08]}  Kh2 {[%clk 0:00:08]} 73. Qd6+ {[%clk 0:00:08]}  Kh1 {[%clk 0:00:08]} 74. Qd5 {[%clk 0:00:08]}  Kh2 {[%clk 0:00:08]} 75. Qe5+ {[%clk 0:00:08]}  Kh1 {[%clk 0:00:08]} 76. Qxh5 {[%clk 0:00:09]}  g1=Q {[%clk 0:00:09]} 77. Qf3+ {[%clk 0:00:09]}  Kh2 {[%clk 0:00:09]} 78. Qf2+ {[%clk 0:00:09]}  Qxf2+ {[%clk 0:00:06]} 79. Kxf2 {[%clk 0:00:10]}  Kh3 {[%clk 0:00:06]} 80. h5 {[%clk 0:00:11]} 1-0


[Site "https://www.chess.com"]